fUSD/lending_fUSD_20250525
["ID","MTS","AMOUNT","RATE_DAILY","PERIOD"]
[362327046,1748195441907,-420.0,0.00019178,2]
[362327047,1748195441916,-420.0,0.00019178,2]
[362327048,1748195441925,-420.0,0.00019178,2]
[362327049,1748195441935,-420.0,0.00019178,2]
[362327050,1748195441943,-420.0,0.00019178,2]
[362327051,1748195441953,-420.0,0.00019178,2]
[362327052,1748195441962,-420.0,0.00019178,2]
[362327053,1748195441971,-420.0,0.00019178,2]
[362327054,1748195441980,-420.0,0.00019178,2]
[362327055,1748195441989,-420.0,0.00019178,2]
[362327056,1748195441998,-420.0,0.00019178,2]
[362327057,1748195442008,-311.03,0.00019178,2]
[362327058,1748195442017,-420.0,0.00019178,2]
[362327059,1748195442026,-420.0,0.00019178,2]
[362327060,1748195442035,-420.0,0.00019178,2]
[362327061,1748195442044,-420.0,0.00019178,2]
[362327062,1748195442053,-480.8,0.00019178,2]
[362327063,1748195442063,-420.0,0.00019178,2]
[362327064,1748195442071,-420.0,0.00019178,2]
[362327065,1748195442080,-420.0,0.00019178,2]
[362327066,1748195442089,-420.0,0.00019178,2]
[362327067,1748195442098,-420.0,0.00019178,2]
[362327068,1748195442107,-420.0,0.00019178,2]
[362327069,1748195442116,-420.0,0.00019178,2]
[362327070,1748195442125,-420.0,0.00019178,2]
[362327071,1748195442134,-420.0,0.00019178,2]
[362327072,1748195442143,-420.0,0.00019178,2]
[362327073,1748195442152,-420.0,0.00019178,2]
[362327074,1748195442161,-838.62,0.00019178,2]
[362327075,1748195442170,-420.0,0.00019178,2]
[362327076,1748195442179,-420.0,0.00019178,2]
[362327077,1748195442188,-838.62,0.00019178,2]
[362327078,1748195442198,-838.62,0.00019178,2]
[362327079,1748195442207,-420.0,0.00019178,2]
[362327080,1748195442217,-420.0,0.00019178,2]
[362327081,1748195442226,-420.0,0.00019178,2]
[362327082,1748195442234,-420.0,0.00019178,2]
[362327083,1748195442243,-420.0,0.00019178,2]
[362327084,1748195442252,-420.0,0.00019178,2]
[362327085,1748195442261,-420.0,0.00019178,2]
[362327086,1748195442270,-420.0,0.00019178,2]
[362327087,1748195442279,-420.0,0.00019178,2]
[362327088,1748195442289,-420.0,0.00019178,2]
[362327089,1748195442298,-420.0,0.00019178,2]
[362327090,1748195442306,-420.0,0.00019178,2]
[362327091,1748195442316,-420.0,0.00019178,2]
[362327092,1748195442325,-420.0,0.00019178,2]
[362327093,1748195442335,-420.0,0.00019178,2]
[362327094,1748195442344,-420.0,0.00019178,2]
[362327095,1748195442353,-465.73,0.00019178,2]
[362327096,1748195442363,-465.73,0.00019178,2]
[362327097,1748195442372,-465.73,0.00019178,2]
[362327098,1748195442381,-1262.48,0.00019178,2]
[362327099,1748195442390,-420.0,0.00019178,2]
[362327100,1748195442399,-1262.48,0.00019178,2]
[362327101,1748195442409,-473.25,0.00019178,2]
[362327102,1748195442418,-1262.48,0.00019178,2]
[362327103,1748195442427,-420.0,0.00019178,2]
[362327104,1748195442436,-420.0,0.00019178,2]
[362327105,1748195442445,-420.0,0.00019178,2]
[362327106,1748195442455,-420.0,0.00019178,2]
[362327107,1748195442464,-420.0,0.00019178,2]
[362327108,1748195442475,-233.45,0.00019178,2]
[362327109,1748195442484,-420.0,0.00019178,2]
[362327110,1748195442494,-420.0,0.00019178,2]
[362327111,1748195442503,-4000.0,0.00019178,2]
[362327112,1748195442512,-1500.0,0.00019178,2]
[362327113,1748195442522,-700.0,0.000192,7]
[362327114,1748195442531,-4765.50745659,0.00019233,2]
[362327115,1748195442542,-11835.64612728,0.00019233,2]
[362327116,1748195442551,-300.0,0.00019272,2]
[362327117,1748195442561,-1100.0,0.000193,7]
[362327118,1748195442571,-765.36490252,0.00019303,2]
[362327119,1748195442580,-168.88,0.00019315,2]
[362327120,1748195442589,-4765.50745659,0.00019344,2]
[362327121,1748195442599,-11835.64612728,0.00019344,2]
[362327122,1748195442609,-1000.0,0.00019385,2]
[362327123,1748195442618,-1500.0,0.000194,7]
[362327124,1748195442627,-476.84827861,0.000194,2]
[362327125,1748195442637,-476.84827855,0.000194,2]
[362327126,1748195442646,-476.84827855,0.000194,2]
[362327127,1748195442655,-476.84827855,0.000194,2]
[362327128,1748195442665,-476.84827855,0.000194,2]
[362327129,1748195442674,-250.0,0.00019444,2]
[362327130,1748195442683,-200.0,0.00019444,2]
[362327131,1748195442692,-476.84827855,0.00019452,2]
[362327132,1748195442704,-4765.50745659,0.00019456,2]
[362327133,1748195442713,-11835.64612728,0.00019456,2]
[362327134,1748195442722,-1800.0,0.000195,7]
[362327135,1748195442731,-500.0,0.00019521,2]
[362327136,1748195442741,-1000.0,0.00019521,2]
[362327137,1748195442751,-1000.0,0.00019521,2]
[362327138,1748195442760,-1057.93876485,0.00019521,2]
[362327139,1748195442769,-693.3919763,0.00019547,2]
[362327140,1748195442779,-420.0,0.00019566,2]
[362327141,1748195442788,-4765.50745659,0.00019567,2]
[362327142,1748195442798,-11835.64612728,0.00019567,2]
[362327143,1748195442807,-613.269006,0.00019599,2]
[362327144,1748195442817,-300.0,0.000196,7]
[362327145,1748195442826,-1680.0,0.0001966,2]
[362327146,1748195442836,-4765.50745659,0.00019678,2]
[362327147,1748195442848,-11835.64612728,0.00019678,2]
[362327148,1748195442858,-765.36490252,0.00019685,2]
[362327149,1748195442867,-250.0,0.00019696,2]
[362327150,1748195442878,-200.0,0.00019696,2]
[362327151,1748195442888,-420.0,0.00019699,2]
[362327152,1748195442897,-300.0,0.000197,7]
[362327153,1748195442907,-1000.0,0.00019721,2]
[362327154,1748195442916,-319.4158115,0.00019721,2]
[362327155,1748195442929,-1000.0,0.00019721,2]
[362327156,1748195442938,-150.0,0.00019726,2]
[362327157,1748195442948,-344.13,0.00019726,2]
[362327158,1748195442959,-937.47149612,0.00019732,2]
[362327159,1748195442969,-150.0,0.0001974,2]
[362327160,1748195442979,-150.0,0.00019741,2]
[362327161,1748195442988,-150.0,0.0001975,2]
[362327162,1748195442998,-476.84827855,0.00019762,2]
[362327163,1748195443007,-150.0,0.00019767,2]
[362327164,1748195443016,-150.0,0.00019779,2]
[362327165,1748195443025,-4765.50745659,0.00019789,2]
[362327166,1748195443034,-11835.64612728,0.00019789,2]
[362327167,1748195443043,-150.0,0.00019791,2]
[362327168,1748195443053,-150.0,0.00019793,2]
[362327169,1748195443062,-263.45629923,0.000198,7]
[362327170,1748195443079,-36.54370077,0.000198,7]
[362327171,1748195443090,-150.0,0.0001982,2]
[362327172,1748195443102,-150.0,0.00019834,2]
[362327173,1748195443112,-150.0,0.0001984,2]
[362327174,1748195443121,-41.76594932,0.00019842,2]
[362327175,1748195443133,-108.23405068,0.00019842,2]
[362327176,1748195443144,-150.0,0.00019852,2]
[362327178,1748195443154,-150.0,0.00019852,2]
[362327180,1748195443165,-150.0,0.00019853,2]
[362327182,1748195443174,-150.0,0.00019857,2]
[362327183,1748195443183,-150.0,0.00019865,2]
[362327184,1748195443193,-150.0,0.00019868,2]
[362327185,1748195443202,-150.0,0.00019869,2]
[362327186,1748195443211,-150.0,0.00019871,2]
[362327187,1748195443220,-150.0,0.00019874,2]
[362327188,1748195443229,-150.0,0.00019881,2]
[362327189,1748195443239,-150.0,0.00019882,2]
[362327190,1748195443248,-150.0,0.00019883,2]
[362327191,1748195443257,-407.03,0.00019894,2]
[362327192,1748195443266,-476.93,0.00019894,2]
[362327193,1748195443276,-1262.48,0.00019894,2]
[362327194,1748195443284,-1337.19414939,0.00019895,2]
[362327195,1748195443296,-41423.49925061,0.00019895,2]
[362327196,1748195443305,-420.0,0.00019899,2]
[362327197,1748195443315,-420.0,0.00019899,2]
[362327198,1748195443324,-1020.89,0.00019899,2]
[362327199,1748195443334,-420.0,0.00019899,2]
[362327200,1748195443344,-420.0,0.00019899,2]
[362327201,1748195443537,-420.0,0.00019899,2]
[362327202,1748195443547,-465.73,0.00019899,2]
[362327203,1748195443558,-300.0,0.000199,7]
[362327204,1748195443568,-4765.50745659,0.000199,2]
[362327205,1748195443577,-11205.60147446,0.000199,2]
[362327206,1748195443588,-372.34049029,0.000199,2]
[362327207,1748195443599,-257.70416253,0.000199,2]
[362327208,1748195443608,-193.30278757,0.000199,2]
[362327209,1748195443618,-950.92120388,0.000199,2]
[362327210,1748195443627,-49883.98557381,0.000199,2]
[362327211,1748195443636,-10628.78386368,0.000199,2]
[362327212,1748195443645,-150.0,0.00019901,2]
[362327213,1748195443655,-150.0,0.00019913,2]
[362327214,1748195443664,-150.0,0.00019919,2]
[362327215,1748195443673,-420.0,0.00019926,2]
[362327216,1748195443682,-420.0,0.00019926,2]
[362327217,1748195443691,-212.97177818,0.00019926,2]
[362327218,1748195443701,-420.0,0.00019926,2]
[362327219,1748195443711,-420.0,0.00019926,2]
[362327220,1748195443721,-419.46395349,0.00019926,2]
[362327221,1748195443730,-420.0,0.00019926,2]
[362327222,1748195443739,-420.0,0.00019926,2]
[362327223,1748195443749,-420.0,0.00019926,2]
[362327224,1748195443758,-420.0,0.00019926,2]
[362327225,1748195443767,-500.0,0.00019926,2]
[362327226,1748195443779,-486.48320036,0.00019926,2]
[362327227,1748195443788,-420.0,0.00019926,2]
[362327228,1748195443798,-452.76838944,0.00019926,2]
[362327229,1748195443807,-420.0,0.00019926,2]
[362327230,1748195443816,-236.47433618,0.00019926,2]
[362327231,1748195443826,-420.0,0.00019926,2]
[362327232,1748195443835,-420.0,0.00019926,2]
[362327233,1748195443845,-420.0,0.00019926,2]
[362327234,1748195443854,-420.0,0.00019926,2]
[362327235,1748195443864,-420.0,0.00019926,2]
[362327237,1748195443873,-260.70797787,0.00019926,2]
[362327238,1748195443882,-420.0,0.00019926,2]
[362327239,1748195443891,-287.82127754,0.00019926,2]
[362327240,1748195443901,-427.97098395,0.00019926,2]
[362327241,1748195443910,-420.0,0.00019926,2]
[362327242,1748195443920,-420.0,0.00019926,2]
[362327243,1748195443929,-257.93885866,0.00019926,2]
[362327244,1748195443939,-420.0,0.00019926,2]
[362327245,1748195443948,-510.77310074,0.00019926,2]
[362327247,1748195443957,-431.09669292,0.00019926,2]
[362327248,1748195443967,-420.0,0.00019926,2]
[362327249,1748195443976,-420.0,0.00019926,2]
[362327250,1748195443985,-367.13527319,0.00019926,2]
[362327251,1748195443994,-386.35062913,0.00019926,2]
[362327252,1748195444004,-150.0,0.00019928,2]
[362327253,1748195444013,-150.0,0.00019929,2]
[362327254,1748195444023,-150.0,0.00019941,2]
[362327255,1748195444032,-150.0,0.00019942,2]
[362327256,1748195444042,-150.0,0.00019945,2]
[362327257,1748195444051,-150.0,0.00019956,2]
[362327258,1748195444060,-354.0,0.00019957,2]
[362327259,1748195444069,-150.0,0.00019962,2]
[362327260,1748195444079,-150.0,0.00019963,2]
[362327261,1748195444087,-150.0,0.00019971,2]
[362327262,1748195444096,-1948.0,0.00019973,2]
[362327263,1748195444106,-500.0,0.00019973,2]
[362327264,1748195444115,-500.0,0.00019973,2]
[362327265,1748195444124,-504.06119418,0.00019973,2]
[362327266,1748195444133,-500.0,0.00019973,2]
[362327267,1748195444142,-501.28993464,0.00019973,2]
[362327268,1748195444151,-500.0,0.00019973,2]
[362327269,1748195444160,-500.0,0.00019973,2]
[362327270,1748195444169,-500.73177626,0.00019973,2]
[362327271,1748195444178,-500.0,0.00019973,2]
[362327272,1748195444187,-500.0,0.00019973,2]
[362327273,1748195444196,-500.0,0.00019973,2]
[362327274,1748195444206,-150.0,0.00019973,2]
[362327275,1748195444215,-150.0,0.00019974,2]
[362327276,1748195444224,-307.96584413,0.00019984,2]
[362327277,1748195444233,-307.96584413,0.0001999,2]
[362327278,1748195444242,-307.96584413,0.0001999,2]
[362327279,1748195444252,-420.0,0.00019993,2]
[362327280,1748195444261,-20000.0,0.00019993,2]
[362327281,1748195444270,-420.0,0.00019994,2]
[362327282,1748195444279,-150.0,0.00019994,2]
[362327283,1748195444288,-150.0,0.00019994,2]
[362327284,1748195444298,-420.0,0.00019994,2]
[362327285,1748195444307,-558.93,0.00019994,2]
[362327286,1748195444316,-420.0,0.00019994,2]
[362327287,1748195444326,-420.0,0.00019994,2]
[362327288,1748195444335,-337.56,0.00019994,2]
[362327289,1748195444344,-355.32,0.00019994,2]
[362327290,1748195444354,-476.93,0.00019994,2]
[362327291,1748195444363,-489.403353,0.00019994,2]
[362327292,1748195444372,-420.0,0.00019994,2]
[362327293,1748195444382,-804.33,0.00019994,2]
[362327295,1748195444391,-420.0,0.00019994,2]
[362327296,1748195444401,-420.0,0.00019994,2]
[362327297,1748195444411,-35282.97953465,0.00019994,2]
[362327298,1748195444428,-466.69545929,0.00019994,2]
[362327299,1748195444521,-419.47277263,0.00019178,2]
[362327300,1748195444532,-0.52722737,0.00019178,2]
[362327301,1748195444542,-284652.18944863,0.00019994,2]
[362327302,1748195444552,-420.0,0.00019994,2]
[362327303,1748195444562,-420.0,0.00019994,2]
[362327304,1748195444571,-420.0,0.00019994,2]
[362327305,1748195444581,-420.0,0.00019994,2]
[362327306,1748195444591,-420.0,0.00019994,2]
[362327307,1748195444600,-838.62,0.00019994,2]
[362327308,1748195444610,-420.0,0.00019994,2]
[362327309,1748195444619,-420.0,0.00019994,2]
[362327310,1748195444628,-420.0,0.00019994,2]
[362327311,1748195444638,-420.0,0.00019994,2]
[362327312,1748195444647,-465.73,0.00019994,2]
[362327313,1748195444656,-1262.48,0.00019994,2]
[362327314,1748195444665,-3075.0488594,0.00019995,2]
[362327315,1748195444674,-66281.1346703,0.00019995,2]
[362327316,1748195444683,-5235.0589029,0.00019995,2]
[362327317,1748195444692,-15900.53722107,0.00019998,2]
[362327318,1748195444704,-1053.44251006,0.00019998,5]
[362327319,1748195444713,-420.0,0.00019998,2]
[362327320,1748195444722,-432.05857156,0.00019998,2]
[362327321,1748195444732,-380.20275439,0.00019998,2]
[362327322,1748195444743,-449.10016462,0.00019998,2]
[362327323,1748195444752,-500.0,0.00019998,2]
[362327324,1748195444762,-420.0,0.00019998,2]
[362327325,1748195444771,-420.0,0.00019998,2]
[362327326,1748195444783,-420.0,0.00019998,2]
[362327327,1748195444794,-150.0,0.00019998,2]
[362327328,1748195444803,-267.09,0.00019998,2]
[362327329,1748195444813,-420.0,0.00019998,2]
[362327330,1748195444823,-420.0,0.00019998,2]
[362327331,1748195444832,-420.0,0.00019998,2]
[362327332,1748195444842,-420.0,0.00019998,2]
[362327333,1748195444851,-558.93,0.00019998,2]
[362327334,1748195444861,-420.0,0.00019998,2]
[362327335,1748195444870,-804.33,0.00019998,2]
[362327336,1748195444880,-420.0,0.00019998,2]
[362327337,1748195444889,-420.0,0.00019998,2]
[362327338,1748195444899,-1020.89,0.00019998,2]
[362327339,1748195444908,-420.0,0.00019998,2]
[362327340,1748195444918,-420.0,0.00019998,2]
[362327341,1748195444927,-420.0,0.00019998,2]
[362327342,1748195444937,-420.0,0.00019998,2]
[362327343,1748195444946,-838.62,0.00019998,2]
[362327344,1748195444955,-481.8,0.00019998,2]
[362327345,1748195444965,-230.77,0.00019998,2]
[362327346,1748195444974,-420.0,0.00019998,2]
[362327347,1748195444983,-346.02603306,0.00019999,2]
[362327348,1748195444993,-2000.0,0.00019999,2]
[362327349,1748195445002,-1021.6172,0.00019999,2]
[362327350,1748195445011,-420.0,0.00019999,2]
[362327351,1748195445021,-194.99,0.00019999,2]
[362327352,1748195445030,-500.0,0.00019999,2]
[362327353,1748195445040,-420.0,0.00019999,2]
[362327354,1748195445049,-354.23189388,0.00019999,2]
[362327355,1748195445058,-420.0,0.00019999,2]
[362327356,1748195445068,-420.0,0.00019999,2]
[362327357,1748195445077,-420.0,0.00019999,2]
[362327358,1748195445087,-420.0,0.00019999,2]
[362327359,1748195445096,-420.0,0.00019999,2]
[362327360,1748195445106,-420.0,0.00019999,2]
[362327361,1748195445115,-420.0,0.00019999,2]
[362327362,1748195445124,-420.0,0.00019999,2]
[362327363,1748195445134,-240.74347899,0.00019999,2]
[362327364,1748195445144,-500.0,0.00019999,2]
[362327365,1748195445153,-150.0,0.00019999,2]
[362327366,1748195445162,-558.93,0.00019999,2]
[362327367,1748195445172,-558.93,0.00019999,2]
[362327368,1748195445181,-558.93,0.00019999,2]
[362327369,1748195445190,-558.93,0.00019999,2]
[362327370,1748195445200,-558.93,0.00019999,2]
[362327371,1748195445209,-558.93,0.00019999,2]
[362327372,1748195445219,-558.93,0.00019999,2]
[362327373,1748195445228,-558.93,0.00019999,2]
[362327374,1748195445237,-558.93,0.00019999,2]
[362327375,1748195445246,-558.93,0.00019999,2]
[362327376,1748195445256,-558.93,0.00019999,2]
[362327377,1748195445265,-558.93,0.00019999,2]
[362327378,1748195445274,-558.93,0.00019999,2]
[362327379,1748195445283,-558.93,0.00019999,2]
[362327380,1748195445292,-558.93,0.00019999,2]
[362327381,1748195445302,-558.93,0.00019999,2]
[362327382,1748195445312,-558.93,0.00019999,2]
[362327383,1748195445321,-558.93,0.00019999,2]
[362327384,1748195445330,-559.06,0.00019999,2]
[362327385,1748195445339,-500.0,0.00019999,2]
[362327386,1748195445349,-150.0,0.00019999,2]
[362327387,1748195445359,-420.0,0.00019999,2]
[362327388,1748195445368,-420.0,0.00019999,2]
[362327389,1748195445377,-420.0,0.00019999,2]
[362327390,1748195445386,-420.0,0.00019999,2]
[362327391,1748195445395,-420.0,0.00019999,2]
[362327392,1748195445405,-360.61,0.00019999,2]
[362327393,1748195445414,-500.0,0.00019999,2]
[362327394,1748195445423,-420.0,0.00019999,2]
[362327395,1748195445433,-420.0,0.00019999,2]
[362327396,1748195445443,-420.0,0.00019999,2]
[362327397,1748195445452,-420.0,0.00019999,2]
[362327398,1748195445461,-420.0,0.00019999,2]
[362327399,1748195445471,-420.0,0.00019999,2]
[362327400,1748195445480,-420.0,0.00019999,2]
[362327401,1748195445489,-420.0,0.00019999,2]
[362327402,1748195445499,-420.0,0.00019999,2]
[362327403,1748195445509,-420.0,0.00019999,2]
[362327404,1748195445519,-420.0,0.00019999,2]
[362327405,1748195445529,-420.0,0.00019999,2]
[362327406,1748195445538,-420.0,0.00019999,2]
[362327407,1748195445547,-420.0,0.00019999,2]
[362327408,1748195445556,-420.0,0.00019999,2]
[362327409,1748195445566,-294.02384389,0.00019999,2]
[362327410,1748195445575,-476.93,0.00019999,2]
[362327411,1748195445585,-476.93,0.00019999,2]
[362327412,1748195445595,-476.93,0.00019999,2]
[362327413,1748195445604,-476.93,0.00019999,2]
[362327414,1748195445613,-476.93,0.00019999,2]
[362327415,1748195445623,-476.93,0.00019999,2]
[362327416,1748195445632,-476.93,0.00019999,2]
[362327417,1748195445641,-476.93,0.00019999,2]
[362327418,1748195445650,-476.93,0.00019999,2]
[362327419,1748195445659,-476.93,0.00019999,2]
[362327420,1748195445669,-476.93,0.00019999,2]
[362327421,1748195445678,-476.93,0.00019999,2]
[362327422,1748195445688,-476.93,0.00019999,2]
[362327423,1748195445698,-476.93,0.00019999,2]
[362327424,1748195445709,-476.93,0.00019999,2]
[362327425,1748195445719,-476.93,0.00019999,2]
[362327426,1748195445728,-476.93,0.00019999,2]
[362327427,1748195445737,-476.93,0.00019999,2]
[362327428,1748195445748,-477.02,0.00019999,2]
[362327429,1748195445758,-804.33,0.00019999,2]
[362327430,1748195445767,-804.33,0.00019999,2]
[362327431,1748195445777,-804.33,0.00019999,2]
[362327432,1748195445786,-804.33,0.00019999,2]
[362327433,1748195445796,-804.33,0.00019999,2]
[362327434,1748195445805,-804.33,0.00019999,2]
[362327435,1748195445814,-804.33,0.00019999,2]
[362327436,1748195445823,-804.33,0.00019999,2]
[362327437,1748195445833,-804.33,0.00019999,2]
[362327438,1748195445842,-804.33,0.00019999,2]
[362327439,1748195445852,-804.33,0.00019999,2]
[362327440,1748195445861,-804.33,0.00019999,2]
[362327441,1748195445871,-804.33,0.00019999,2]
[362327442,1748195445880,-804.33,0.00019999,2]
[362327443,1748195445890,-804.33,0.00019999,2]
[362327444,1748195445899,-804.33,0.00019999,2]
[362327445,1748195445908,-804.33,0.00019999,2]
[362327446,1748195445917,-804.33,0.00019999,2]
[362327447,1748195445927,-804.45,0.00019999,2]
[362327448,1748195445937,-420.0,0.00019999,2]
[362327449,1748195445946,-420.0,0.00019999,2]
[362327450,1748195445955,-420.0,0.00019999,2]
[362327451,1748195445964,-506.7,0.00019999,2]
[362327452,1748195445973,-420.0,0.00019999,2]
[362327453,1748195445983,-420.0,0.00019999,2]
[362327454,1748195445992,-420.0,0.00019999,2]
[362327455,1748195446001,-420.0,0.00019999,2]
[362327456,1748195446010,-2000.0,0.00019999,2]
[362327457,1748195446019,-1020.89,0.00019999,2]
[362327458,1748195446029,-1020.89,0.00019999,2]
[362327459,1748195446038,-1020.89,0.00019999,2]
[362327460,1748195446048,-1020.89,0.00019999,2]
[362327461,1748195446057,-1020.89,0.00019999,2]
[362327462,1748195446067,-1020.89,0.00019999,2]
[362327463,1748195446076,-1020.89,0.00019999,2]
[362327464,1748195446086,-1020.89,0.00019999,2]
[362327465,1748195446095,-1020.89,0.00019999,2]
[362327467,1748195446105,-1020.89,0.00019999,2]
[362327468,1748195446114,-1020.89,0.00019999,2]
[362327470,1748195446124,-1020.89,0.00019999,2]
[362327472,1748195446133,-1020.89,0.00019999,2]
[362327473,1748195446143,-1020.89,0.00019999,2]
[362327474,1748195446152,-1020.89,0.00019999,2]
[362327475,1748195446161,-1020.89,0.00019999,2]
[362327476,1748195446170,-1020.89,0.00019999,2]
[362327477,1748195446179,-1020.89,0.00019999,2]
[362327478,1748195446189,-1021.08,0.00019999,2]
[362327479,1748195446199,-420.0,0.00019999,2]
[362327480,1748195446209,-420.0,0.00019999,2]
[362327481,1748195446219,-420.0,0.00019999,2]
[362327482,1748195446230,-420.0,0.00019999,2]
[362327483,1748195446239,-420.0,0.00019999,2]
[362327484,1748195446249,-420.0,0.00019999,2]
[362327485,1748195446258,-420.0,0.00019999,2]
[362327486,1748195446267,-256.7,0.00019999,2]
[362327487,1748195446276,-420.0,0.00019999,2]
[362327488,1748195446285,-420.0,0.00019999,2]
[362327489,1748195446295,-420.0,0.00019999,2]
[362327490,1748195446306,-507.01487055,0.00019999,2]
[362327491,1748195446316,-420.0,0.00019999,2]
[362327492,1748195446326,-420.0,0.00019999,2]
[362327493,1748195446335,-420.0,0.00019999,2]
[362327494,1748195446344,-420.0,0.00019999,2]
[362327495,1748195446354,-420.0,0.00019999,2]
[362327496,1748195446363,-420.0,0.00019999,2]
[362327497,1748195446373,-420.0,0.00019999,2]
[362327498,1748195446382,-420.0,0.00019999,2]
[362327499,1748195446391,-420.0,0.00019999,2]
[362327500,1748195446401,-420.0,0.00019999,2]
[362327501,1748195446410,-420.0,0.00019999,2]
[362327502,1748195446420,-420.0,0.00019999,2]
[362327503,1748195446429,-338.5,0.00019999,2]
[362327504,1748195446439,-420.0,0.00019999,2]
[362327505,1748195446448,-420.0,0.00019999,2]
[362327506,1748195446458,-420.0,0.00019999,2]
[362327507,1748195446467,-420.0,0.00019999,2]
[362327508,1748195446476,-420.0,0.00019999,2]
[362327509,1748195446485,-420.0,0.00019999,2]
[362327510,1748195446494,-420.0,0.00019999,2]
[362327511,1748195446503,-420.0,0.00019999,2]
[362327512,1748195446513,-420.0,0.00019999,2]
[362327513,1748195446523,-420.0,0.00019999,2]
[362327514,1748195446532,-420.0,0.00019999,2]
[362327515,1748195446542,-420.0,0.00019999,2]
[362327516,1748195446553,-420.0,0.00019999,2]
[362327517,1748195446564,-420.0,0.00019999,2]
[362327518,1748195446574,-420.0,0.00019999,2]
[362327519,1748195446584,-420.0,0.00019999,2]
[362327520,1748195446593,-420.0,0.00019999,2]
[362327521,1748195446602,-534.2,0.00019999,2]
[362327522,1748195446612,-420.0,0.00019999,2]
[362327523,1748195446621,-420.0,0.00019999,2]
[362327524,1748195446631,-420.0,0.00019999,2]
[362327525,1748195446640,-512.44,0.00019999,2]
[362327526,1748195446649,-838.62,0.00019999,2]
[362327527,1748195446659,-838.62,0.00019999,2]
[362327528,1748195446668,-838.62,0.00019999,2]
[362327529,1748195446677,-838.62,0.00019999,2]
[362327530,1748195446687,-838.62,0.00019999,2]
[362327531,1748195446698,-838.62,0.00019999,2]
[362327532,1748195446711,-838.62,0.00019999,2]
[362327533,1748195446720,-838.62,0.00019999,2]
[362327534,1748195446729,-838.62,0.00019999,2]
[362327535,1748195446739,-838.62,0.00019999,2]
[362327536,1748195446750,-838.62,0.00019999,2]
[362327537,1748195446759,-838.62,0.00019999,2]
[362327538,1748195446770,-838.62,0.00019999,2]
[362327539,1748195446780,-838.62,0.00019999,2]
[362327540,1748195446791,-838.62,0.00019999,2]
[362327541,1748195446800,-838.62,0.00019999,2]
[362327543,1748195446809,-838.62,0.00019999,2]
[362327544,1748195446819,-838.62,0.00019999,2]
[362327545,1748195446829,-838.81,0.00019999,2]
[362327546,1748195446838,-420.0,0.00019999,2]
[362327547,1748195446848,-420.0,0.00019999,2]
[362327548,1748195446857,-420.0,0.00019999,2]
[362327549,1748195446867,-420.0,0.00019999,2]
[362327550,1748195446876,-420.0,0.00019999,2]
[362327551,1748195446887,-420.0,0.00019999,2]
[362327552,1748195446898,-420.0,0.00019999,2]
[362327553,1748195446908,-420.0,0.00019999,2]
[362327554,1748195446918,-420.0,0.00019999,2]
[362327555,1748195446928,-420.0,0.00019999,2]